Cogmind - Beta 16.1 --- EXPLORER MODE // 2026.03.31 @ 01:22:47 // Winter2019/RPGLIKE Player: Gnomed! Result: Establishing 0b11! Performance ------------- Evolutions (9) 4500 Regions Visited (28) 5600 Robots Destroyed (82) 410 Value Destroyed (5436) 5436 Prototype IDs (364) 7280 Alien Tech Used (4) 800 Bonus (63273) 63273 TOTAL SCORE: 87299 Bonus ------- Triggered High Security 500 High Alert Combat Kills 823 Follower Combat Kills 242 Network Hubs Disabled 400 Met Data Miner 300 Met Zhirov 300 Built Enhanced Grunts 300 Met R17 at Cetus 500 Scanned by Researcher 500 Destroyed Superfortress 15000 Destroyed MAIN.C Guards 500 Met MAIN.C 5000 Destroyed MAIN.C Shell 5000 Destroyed MAIN.C 10000 Met Architect 300 Destroyed A8 300 Destroyed A5 500 Destroyed A2 1000 Destroyed Architect 15000 Win 3000 Win Speed 3939 Friendly Fire -131 Cogmind --------- Core Integrity 6012/20050 Matter 1009/2150 Energy 10642/10650 System Corruption 13% Temperature Cool (16) Movement Flying (21) Location 0b11 Command Parts ------- > --- POWER (1) -------- Improved Quantum Reactor > --- PROPULSION (6) --- Xenon Bombardment Thruster Advanced Surge Thruster Advanced Surge Thruster Cooled Q-thruster > --- UTILITY (11) ----- Machine Analyzer > --- WEAPON (8) ------- Neutron Cannon Heavy Neutron Cannon Light Antimatter Cannon Linear Accelerator Gamma Bomb Array > --- INVENTORY (122) -- Light Ion Engine Quantum Reactor Quantum Reactor Flight Unit Cesium-ion Thruster High-powered Transdimensional Reconstructor Small Laser Particle Gun Subdweller Beam Cannon Heavy Phase Cannon Light Assault Rifle Advanced KE Penetrator Magnetic Acceleration Cannon Magnetic Acceleration Cannon Magnetic Acceleration Cannon Proton Missile Launcher Heavy Shock Bomb Launcher Peak State ------------ > --- POWER ------------ Quantum Reactor > --- PROPULSION ------- Cooled Nuclear Pulse Thruster Q-thruster Experimental Surge Thruster Experimental Surge Thruster Experimental Surge Thruster Experimental Surge Thruster > --- UTILITY ---------- Advanced Power Amplifier Machine Analyzer Signal Interpreter Improved Terrain Scanner Terrain Scan Processor Utility Shielding Experimental Utility Shielding > --- WEAPON ----------- Advanced Variable Charge Gun Concept Variable Chargecaster Advanced Plasma Cannon Heavy Phase Cannon Heavy Phase Cannon Heavy Phase Cannon Core Cannon > --- INVENTORY -------- Light Ion Engine Quantum Reactor Flight Unit Cesium-ion Thruster Cesium-ion Thruster Xenon Bombardment Thruster Small Laser Particle Gun Subdweller Beam Cannon Heavy Phase Cannon Neutron Cannon Neutron Cannon Neutron Cannon Light Assault Rifle Advanced KE Penetrator Magnetic Acceleration Cannon Magnetic Acceleration Cannon Magnetic Acceleration Cannon Linear Accelerator Proton Missile Launcher Heavy Shock Bomb Launcher Gamma Bomb Array [Rating: 170] Favorites ----------- Power Light Fission Core Engine Light Ion Engine Power Core Light Fission Core Reactor Quantum Reactor Propulsion Flight Unit Wheel Wheel Flight Unit Flight Unit Utility Hardened Heavy Armor Plating Device Improved Terrain Scanner Processor Machine Analyzer Protection Hardened Heavy Armor Plating Weapon Particle Gun Energy Gun Particle Gun Energy Cannon Heavy Phase Cannon Ballistic Gun Light Assault Rifle Ballistic Cannon Magnetic Acceleration Cannon Launcher Fusion Bomb Launcher Build | -11 -10 -10 -8 -8 -8 -6 -6 -6 -6 -5 -5 -5 -5 -5 -4 -4 -4 -4 -4 -4 -3 -3 -2 -2 -2 -1 -1 -1 ------- Run | Yrd Mat Sub Mat Sto Rec Fac Low Low Dat Pro Fac Upp Upp Zhi Pro Fac Ext Cet Arc Hub Res Tes Res Qua Frg Acc Com Ac0 Slots Evolved 22 | 22 . . . . . . . . . . . . . . . . . . . . . . . . . . . . Power . | . . . . . . . . . . . . . . . . . . . . . . . . . . . . . Propulsion 5 | 5 . . . . . . . . . . . . . . . . . . . . . . . . . . . . Utility 10 | 10 . . . . . . . . . . . . . . . . . . . . . . . . . . . . Weapon 7 | 7 . . . . . . . . . . . . . . . . . . . . . . . . . . . . Parts Attached 75 | 8 14 2 8 . . . 1 . . . 1 . . 5 . . . 11 . . 1 1 . 1 6 1 2 13 Power 5 | 1 . . . . . . 1 . . . . . . . . . . 1 . . . . . . . 1 . 1 Engine 1 | 1 . . . . . . . . . . . . . . . . . . . . . . . . . . . . Core 1 | . . . . . . . 1 . . . . . . . . . . . . . . . . . . . . . Reactor 3 | . . . . . . . . . . . . . . . . . . 1 . . . . . . . 1 . 1 Propulsion 25 | 2 3 . 6 . . . . . . . . . . 3 . . . . . . 1 1 . . 4 . 2 3 Treads . | . . . . . . . . . . . . . . . . . . . . . . . . . . . . . Leg . | . . . . . . . . . . . . . . . . . . . . . . . . . . . . . Wheel 2 | 2 . . . . . . . . . . . . . . . . . . . . . . . . . . . . Hover . | . . . . . . . . . . . . . . . . . . . . . . . . . . . . . Flight 23 | . 3 . 6 . . . . . . . . . . 3 . . . . . . 1 1 . . 4 . 2 3 Utility 11 | 2 3 2 2 . . . . . . . . . . 2 . . . . . . . . . . . . . . Device 3 | 1 . 1 . . . . . . . . . . . 1 . . . . . . . . . . . . . . Storage . | . . . . . . . . . . . . . . . . . . . . . . . . . . . . . Processor 4 | . 3 1 . . . . . . . . . . . . . . . . . . . . . . . . . . Hackware . | . . . . . . . . . . . . . . . . . . . . . . . . . . . . . Protection 4 | 1 . . 2 . . . . . . . . . . 1 . . . . . . . . . . . . . . Artifact . | . . . . . . . . . . . . . . . . . . . . . . . . . . . . . Weapon 34 | 3 8 . . . . . . . . . 1 . . . . . . 10 . . . . . 1 2 . . 9 Energy Gun 12 | 2 6 . . . . . . . . . . . . . . . . 2 . . . . . . 2 . . . Energy Cannon 10 | . . . . . . . . . . . . . . . . . . 5 . . . . . 1 . . . 4 Ballistic Gun 4 | 1 2 . . . . . . . . . . . . . . . . 1 . . . . . . . . . . Ballistic Cannon 5 | . . . . . . . . . . . 1 . . . . . . 2 . . . . . . . . . 2 Launcher 3 | . . . . . . . . . . . . . . . . . . . . . . . . . . . . 3 Special Weapon . | . . . . . . . . . . . . . . . . . . . . . . . . . . . . . Impact Weapon . | . . . . . . . . . . . . . . . . . . . . . . . . . . . . . Slashing Weapon . | . . . . . . . . . . . . . . . . . . . . . . . . . . . . . Piercing Weapon . | . . . . . . . . . . . . . . . . . . . . . . . . . . . . . Special Melee Weapon . | . . . . . . . . . . . . . . . . . . . . . . . . . . . . . Unidentified Prototypes 10 | . . . . . . . . . . . . . . 2 . . . 2 . . . . 1 1 4 . . . Corrupted Parts 1 | . . . . . . . . . . . . . . . . . . 1 . . . . . . . . . . System Corruption 2 | . . . . . . . . . . . . . . . . . . 2 . . . . . . . . . . Parts Lost 20 | . . . . . . . . . . . . . . . . . . . . . . . 1 . 3 . 7 9 Power . | . . . . . . . . . . . . . . . . . . . . . . . . . . . . . Propulsion 8 | . . . . . . . . . . . . . . . . . . . . . . . 1 . 1 . . 6 Utility 7 | . . . . . . . . . . . . . . . . . . . . . . . . . 2 . 5 . Weapon 5 | . . . . . . . . . . . . . . . . . . . . . . . . . . . 2 3 Highest Loss Streak 6 | . . . . . . . . . . . . . . . . . . . . . . . 1 . 3 . 6 4 To Critical Strikes 6 | . . . . . . . . . . . . . . . . . . . . . . . . . . . . 6 Average Backups 13 | . . 2 3 6 6 6 9 10 11 11 12 16 16 17 19 19 19 14 12 12 12 16 18 19 20 21 25 20 Power . | . . . . . . . . 1 1 1 1 1 1 1 1 1 1 1 1 1 1 1 1 1 1 1 2 2 Propulsion 2 | . . . . 3 3 3 3 3 3 3 3 3 3 3 4 4 4 3 1 1 1 1 1 1 1 4 5 4 Utility . | . . . . . . . . . . . . . . . . . . . . . . . . . . . . . Weapon 8 | . . 2 3 3 3 3 6 6 7 7 8 12 12 12 12 12 12 8 8 8 8 12 14 15 16 16 16 12 Tool/Special . | . . . . . . . . . . . . . . . . . . . . . . . . . . . . . Unused Backups 4 | . . . . . . . . . . . . . . . . . . . . . . . . . . . . 4 Power . | . . . . . . . . . . . . . . . . . . . . . . . . . . . . . Propulsion . | . . . . . . . . . . . . . . . . . . . . . . . . . . . . . Utility . | . . . . . . . . . . . . . . . . . . . . . . . . . . . . . Weapon 3 | . . . . . . . . . . . . . . . . . . . . . . . . . . . . 3 Tool/Special 1 | . . . . . . . . . . . . . . . . . . . . . . . . . . . . 1 Average Slot Usage (%) 78 | . 41 69 84 92 92 92 92 92 92 92 92 92 92 91 92 92 92 82 92 89 89 92 92 88 84 79 73 52 Core 1 | . . . . . . . 1 3 3 3 3 3 3 3 3 3 3 2 . . . . . . . . . . Reactor 1 | . . . . . . . . . . . . . . . . . . . 3 3 3 3 3 3 3 3 3 3 Flight 18 | . 5 11 16 23 23 23 23 23 23 23 23 23 23 22 23 23 23 13 23 20 20 23 23 23 23 22 23 18 Device 5 | . 3 3 7 7 7 7 7 7 7 7 7 7 7 7 7 7 7 7 7 7 7 7 7 7 7 7 6 . Processor 10 | . 1 14 15 15 15 15 15 15 15 15 15 15 15 13 11 11 11 11 11 11 11 11 11 11 11 11 10 3 Protection 9 | . 3 3 9 11 11 11 11 11 11 11 11 11 11 13 15 15 15 15 15 15 15 15 15 15 11 7 3 . Energy Gun 12 | . 10 19 19 19 19 19 19 19 19 19 19 19 19 19 19 19 19 7 7 7 7 7 7 7 7 7 7 2 Energy Cannon 7 | . . . . . . . . . . . . . . . . . . 17 19 19 19 19 19 19 19 19 17 14 Ballistic Gun 5 | . 7 11 11 11 11 11 11 11 11 11 9 7 7 7 7 7 7 . . . . . . . . . . . Ballistic Cannon 1 | . . . . . . . . . . . 1 3 3 3 3 3 3 3 3 3 3 3 3 . . . . 5 Peak Build Rating 170 | 10 25 30 54 54 54 56 60 60 60 60 67 67 67 97 97 97 97 122 120 120 123 135 135 153 169 170 170 150 Average Rating 89 | 6 14 28 47 54 54 54 58 60 60 60 63 67 67 83 97 97 97 113 120 119 120 131 134 151 155 169 163 123 On Entrance 85 | . 10 25 30 54 54 54 56 60 60 60 60 67 67 67 97 97 97 97 120 120 119 123 135 135 153 169 160 130 Avg Prop Armor Cover (%) 5 | . . . . . . . . . . . . . . . . . . . . . . . . . . . 7 3 Naked Turns . | . . . . . . . . . . . . . . . . . . . . . . . . . . . . . Heaviest Build 133 | 8 23 25 65 65 65 65 69 69 69 69 76 76 76 78 78 78 78 133 133 133 133 133 133 133 125 88 88 94 Greatest Support 541 | 531 531 517 531 531 531 531 531 531 531 531 531 531 531 537 537 537 537 537 533 533 535 539 539 539 540 539 539 541 Greatest Overweight (x) . | . . . . . . . . . . . . . . . . . . . . . . . . . . . . . Average Overweight (x) . | . . . . . . . . . . . . . . . . . . . . . . . . . . . . . Largest Inventory Capacity 122 | 122 122 122 122 122 122 122 122 122 122 122 122 122 122 122 122 122 122 122 122 122 122 122 122 122 122 122 122 122 Average Capacity 122 | 122 122 122 122 122 122 122 122 122 122 122 122 122 122 122 122 122 122 122 122 122 122 122 122 122 122 122 122 122 Most Carried 26 | . 3 3 6 6 6 9 10 11 11 11 16 16 16 19 19 19 19 19 12 12 12 19 19 20 21 22 26 26 Average Carried 13 | . . 2 3 6 6 6 9 10 11 11 12 16 16 17 19 19 19 14 12 12 12 17 18 19 20 21 25 20 Final Capacity 122 | 122 122 122 122 122 122 122 122 122 122 122 122 122 122 122 122 122 122 122 122 122 122 122 122 122 122 122 122 122 Final Carried 26 | . 3 3 6 6 6 9 10 11 11 11 16 16 16 19 19 19 19 12 12 12 12 19 18 20 21 22 26 17 Class Distribution -------------------- 83% | Wizard-Scout 11% | Wizard-Sprinter 5% | Wizard-Gunner Dominant Class ---------------- Wizard-Scout | -10/Materials Wizard-Scout | -10/Subcaves Wizard-Scout | -8/Materials Wizard-Scout | -8/Storage Wizard-Scout | -8/Recycling Wizard-Scout | -6/Factory Wizard-Scout | -6/Lower Caves Wizard-Scout | -6/Lower Caves Wizard-Scout | -6/Data Miner Wizard-Scout | -5/Proximity Caves Wizard-Scout | -5/Factory Wizard-Scout | -5/Upper Caves Wizard-Scout | -5/Upper Caves Wizard-Scout | -5/Zhirov Wizard-Scout | -4/Proximity Caves Wizard-Scout | -4/Factory Wizard-Scout | -4/Extension Wizard-Scout | -4/Cetus Wizard-Scout | -4/Archives Wizard-Scout | -4/Hub_04(d) Wizard-Scout | -3/Research Wizard-Scout | -3/Testing Wizard-Scout | -2/Research Wizard-Scout | -2/Quarantine Wizard-Scout | -2/Protoforge Wizard-Scout | -1/Access Wizard-Scout | -1/Command Wizard-Sprinter | -1/Access_0 Resources | -11 -10 -10 -8 -8 -8 -6 -6 -6 -6 -5 -5 -5 -5 -5 -4 -4 -4 -4 -4 -4 -3 -3 -2 -2 -2 -1 -1 -1 ----------- Run | Yrd Mat Sub Mat Sto Rec Fac Low Low Dat Pro Fac Upp Upp Zhi Pro Fac Ext Cet Arc Hub Res Tes Res Qua Frg Acc Com Ac0 Matter Collected 3330 | 262 205 145 124 . . 97 158 68 . 215 . 121 68 . 180 . 452 314 . . 101 . . 348 . . 344 128 Remotely . | . . . . . . . . . . . . . . . . . . . . . . . . . . . . . Salvage Created 4225 | 108 268 68 66 22 . . 79 . . 138 . 121 . . 75 11 396 454 . 146 96 . . 173 637 . 1202 165 Parts 155 | 6 19 19 5 1 . . 6 2 . 2 . 3 . . 4 2 11 24 . 8 3 . . . 6 . 29 5 Haulers Intercepted . | . . . . . . . . . . . . . . . . . . . . . . . . . . . . . Recyclers Shooed 3 | 1 1 . . . . . . . . . . . . . . . 1 . . . . . . . . . . . Parts Field Recycled . | . . . . . . . . . . . . . . . . . . . . . . . . . . . . . Retrieved Matter . | . . . . . . . . . . . . . . . . . . . . . . . . . . . . . Parts Self-Destructed . | . . . . . . . . . . . . . . . . . . . . . . . . . . . . . Prevented . | . . . . . . . . . . . . . . . . . . . . . . . . . . . . . Parts Restored . | . . . . . . . . . . . . . . . . . . . . . . . . . . . . . Kills | -11 -10 -10 -8 -8 -8 -6 -6 -6 -6 -5 -5 -5 -5 -5 -4 -4 -4 -4 -4 -4 -3 -3 -2 -2 -2 -1 -1 -1 ------- Run | Yrd Mat Sub Mat Sto Rec Fac Low Low Dat Pro Fac Upp Upp Zhi Pro Fac Ext Cet Arc Hub Res Tes Res Qua Frg Acc Com Ac0 Combat Hostiles Destroyed 72 | . 6 7 2 . . . 3 1 . 3 . 4 . . 5 . 7 7 . 1 2 . . 1 3 . 14 6 Guns 41 | . 6 6 2 . . . 3 1 . 3 . 3 . . 5 . 3 1 . . 1 . . 1 1 . 4 1 Cannons 22 | . . . . . . . . . . . . . . . . . 3 2 . 1 1 . . . 2 . 9 4 AOE 1 | . . . . . . . . . . . . . . . . . . . . . . . . . . . . 1 Classes Destroyed 19 | 2 4 4 . 1 . . 1 1 . . . . . . 1 1 . . . . . . . 1 1 . 2 . Worker 1 | . . . . 1 . . . . . . . . . . . . . . . . . . . . . . . . Builder 2 | . 2 . . . . . . . . . . . . . . . . . . . . . . . . . . . Tunneler 1 | 1 . . . . . . . . . . . . . . . . . . . . . . . . . . . . Recycler 1 | 1 . . . . . . . . . . . . . . . . . . . . . . . . . . . . Operator 2 | . . . . . . . . . . . . . . . . 1 . . . 1 . . . . . . . . Drone 2 | . . . . . . . . . . . . . . . 2 . . . . . . . . . . . . . Watcher 3 | . 1 . 1 . . . . . . . . . . . . . . 1 . . . . . . . . . . Swarmer 11 | . 4 . 2 . . . . . . . . . . . 3 . . . . . 2 . . . . . . . Cutter 3 | . . . . . . . . . . . . . . . . . . . . . . . . . . . 3 . Grunt 9 | . 2 1 . . . . . . . 2 . . . . . . 4 . . . . . . . . . . . Sentry 5 | . . 1 . . . . . . . 1 . . . . . . 3 . . . . . . . . . . . Specialist 1 | . . . . . . . . . . . . . . . . . . . . . . . . . 1 . . . Hunter 4 | . . . . . . . 3 . . . . . . . . . . . . . . . . . . . 1 . Programmer 5 | . . . . . . . . 1 . . . . . . . . . . . . . . . . 1 . 3 . Cetus Guard 7 | . . . . . . . . . . . . . . . . . . 7 . . . . . . . . . . M Guard 1 | . . . . . . . . . . . . . . . . . . . . . . . . . . . 1 . Enhanced Grunt 2 | . . . . . . . . . . . . . . . . . . . . . . . . . . . . 2 Lightning 1 | . . . . . . . . . . . . . . . . . . . . 1 . . . . . . . . Combat Programmer 2 | . . . . . . . . . . . . . . . . . . . . . . . . . . . 2 . Striker 2 | . . . . . . . . . . . . . . . . . . . . . . . . . . . 2 . Fortress 1 | . . . . . . . . . . . . . . . . . . . . . . . . 1 . . . . Artisan 1 | . . 1 . . . . . . . . . . . . . . . . . . . . . . . . . . Subdweller 5 | . . 5 . . . . . . . . . . . . . . . . . . . . . . . . . . Scientist 1 | . . 1 . . . . . . . . . . . . . . . . . . . . . . . . . . Thug 4 | . . . . . . . . . . . . 4 . . . . . . . . . . . . . . . . Best Kill Streak 5 | 2 3 4 3 1 . . 3 1 . 2 . 4 . . 5 1 4 5 . 2 2 . . 1 2 . 4 2 Combat Bots Only 5 | . 2 4 2 . . . 3 1 . 2 . 4 . . 5 . 4 4 . 1 2 . . 1 2 . 4 2 Max Kills in Single Turn 2 | 1 1 1 2 1 . . 1 1 . 1 . 1 . . 2 1 1 2 . 1 1 . . 1 1 . 2 1 Gunslinging 1 | . . . 1 . . . . . . . . . . . . . . . . . . . . . . . . . Exploded 1 | . . . . . . . . . . . . . . . . . . . . . . . . . . . . 1 Melee . | . . . . . . . . . . . . . . . . . . . . . . . . . . . . . Uniques/NPCs Destroyed 7 | . . . . . . . . . . . . . . . . . . . . . . . . . 1 . 2 4 Superfortress (-2/Protoforge) MAIN.C Shell (-1/Command) MAIN.C (-1/Command) A8 (-1/Access_0) A5 (-1/Access_0) A2 (-1/Access_0) Architect (-1/Access_0) Combat | -11 -10 -10 -8 -8 -8 -6 -6 -6 -6 -5 -5 -5 -5 -5 -4 -4 -4 -4 -4 -4 -3 -3 -2 -2 -2 -1 -1 -1 -------- Run | Yrd Mat Sub Mat Sto Rec Fac Low Low Dat Pro Fac Upp Upp Zhi Pro Fac Ext Cet Arc Hub Res Tes Res Qua Frg Acc Com Ac0 Hostile Shots Fired 1519 | . 30 15 3 7 3 46 21 9 . 3 18 43 . . 3 2 46 50 11 54 64 72 . 40 125 38 176 640 Missed 716 | . 14 7 3 . 2 26 10 5 . 1 11 20 . . 3 2 20 24 7 26 37 48 . 17 48 17 74 294 Hits 803 | . 16 8 . 7 1 20 11 4 . 2 7 23 . . . . 26 26 4 28 27 24 . 23 77 21 102 346 Melee 14 | . . . . . . . . . . . . . . . . . . . . . . . . . . . 2 12 Projectile 789 | . 16 8 . 7 1 20 11 4 . 2 7 23 . . . . 26 26 4 28 27 24 . 23 77 21 100 334 AOE 20 | . . . . . . . . . . . . . . . . . . . . . . . . . . . 20 . Critical Strikes 141 | . . 1 . . . 1 1 . . . 1 3 . . . . 2 3 . 7 . 1 . 3 10 2 9 97 Part Disruptions 10 | . . . . . . . . . . . . . . . . . . . . 1 . . . . . . 5 4 Damage Taken 15572 | . 68 79 . 41 7 156 74 12 . 19 62 226 . . . . 303 205 48 650 232 288 . 415 924 197 5696 5870 Core 11467 | . 50 59 . 23 5 70 40 4 . 11 26 137 . . . . 173 111 17 361 122 142 . 253 581 162 4476 4644 Absorbed by Shields 135 | . . . . . . . . . . . . . . . . . 15 120 . . . . . . . . . . Redirected to Core 9688 | . 39 59 . 17 5 59 40 4 . 11 26 119 . . . . 148 111 17 291 110 142 . 245 526 110 3658 3951 Redirected to Shielding 223 | . . . . . . . 1 1 . . . . . . . . . . . . . 19 . . 8 . 194 . Ignored by Resistances 13200 | . 87 104 . 60 10 215 100 20 . 25 79 250 . . . . 410 418 61 489 315 250 . 529 1034 260 2525 5959 Core Remaining (%) 84 | 100 . 98 . . 98 . . . . 97 . . . . 95 . . . . 89 . 86 . . 70 . . 29 Volleys Fired 219 | 5 20 23 2 1 4 . 5 1 . 4 3 9 . . 7 1 15 11 . 3 2 . . 13 8 2 41 39 Largest 8 | 3 8 8 8 8 8 . 8 8 . 8 8 8 . . 8 8 8 8 . 8 7 . . 7 7 7 7 8 Hottest 1193 | 100 370 370 370 370 370 . 370 370 . 370 394 394 . . 394 394 394 982 . 982 742 . . 1148 1193 1193 1193 809 Shots Fired 1437 | 15 61 184 16 8 32 . 36 8 . 32 24 72 . 1 55 8 120 88 . 22 14 . . 91 56 13 228 253 Gun 821 | 15 61 184 16 8 32 . 36 8 . 32 22 63 . 1 48 7 105 33 . 4 2 . . 25 16 3 66 34 Cannon 588 | . . . . . . . . . . . 2 9 . . 7 1 15 55 . 18 12 . . 66 40 10 162 191 Launcher 28 | . . . . . . . . . . . . . . . . . . . . . . . . . . . . 28 Special . | . . . . . . . . . . . . . . . . . . . . . . . . . . . . . Kinetic 341 | 5 33 69 6 3 12 . 15 3 . 12 9 27 . . 21 3 45 21 . 3 2 . . 1 . . . 51 Thermal 1068 | 10 28 115 10 5 20 . 21 5 . 20 15 45 . 1 34 5 75 67 . 19 12 . . 90 56 13 228 174 Explosive 20 | . . . . . . . . . . . . . . . . . . . . . . . . . . . . 20 Electromagnetic 8 | . . . . . . . . . . . . . . . . . . . . . . . . . . . . 8 Robot Hit Streak 70 | 10 19 41 44 8 . . 41 45 . 61 . 41 . 13 24 26 70 35 . 4 8 . . 46 32 . 67 53 Robot Miss Streak 2 | . 1 1 1 . . . . . . 1 . 1 . . . . 1 1 . . . . . 1 1 . 1 2 Penetration Max 2 | . . . . . . . . . . . . . . . . . . . . . . . . . 2 . . 1 Secondary Targets 6 | . 1 2 1 . . . 2 . . . . . . . . . . . . . . . . . . . . . Max Gunslinging Chain 1 | . 1 1 1 . . . 1 . . . . . . . . . . . . . . . . . . . . . Shots Hit Robots 855 | 10 39 56 9 2 . . 33 4 . 20 . 49 . 1 11 2 99 53 . 3 4 . . 77 46 . 151 186 Core Hits 269 | 4 14 14 4 1 . . 11 2 . 12 . 11 . . 7 1 29 14 . 6 2 . . 20 13 . 43 61 Critical Kills 4 | . . . . . . . . . . . . . . . . . . 1 . . . . . . 2 . . 1 Critical Parts Destroyed 16 | . . . . . . . . . . . . . . . . . . . . . . . . 2 1 . 7 6 Critical Strikes 50 | . 1 2 . . . . 2 2 . 2 . 2 . . 1 . 4 1 . . . . . 6 6 . 11 10 Burn 15 | . 1 2 . . . . 2 2 . 2 . 2 . . 1 . 3 . . . . . . . . . . . Meltdown 1 | . . . . . . . . . . . . . . . . . . 1 . . . . . . . . . . Destroy 31 | . . . . . . . . . . . . . . . . . . . . . . . . 6 6 . 11 8 Blast 3 | . . . . . . . . . . . . . . . . . 1 . . . . . . . . . . 2 Melee Attacks . | . . . . . . . . . . . . . . . . . . . . . . . . . . . . . Impact . | . . . . . . . . . . . . . . . . . . . . . . . . . . . . . Slashing . | . . . . . . . . . . . . . . . . . . . . . . . . . . . . . Piercing . | . . . . . . . . . . . . . . . . . . . . . . . . . . . . . Sneak Attacks . | . . . . . . . . . . . . . . . . . . . . . . . . . . . . . Combat Hostiles . | . . . . . . . . . . . . . . . . . . . . . . . . . . . . . Follow-up Attacks . | . . . . . . . . . . . . . . . . . . . . . . . . . . . . . Damage Inflicted 29868 | 147 453 762 146 31 . . 441 87 . 400 . 797 . . 188 75 1767 2010 . 409 207 . . 2998 2754 . 7343 8853 Guns 10461 | 147 448 762 146 31 . . 441 87 . 400 . 650 . . 188 33 1423 806 . 60 131 . . 816 563 . 2477 852 Cannons 17758 | . . . . . . . . . . . . 147 . . . 42 344 1204 . 82 76 . . 2182 2191 . 4866 6624 Explosions 1644 | . . . . . . . . . . . . . . . . . . . . 267 . . . . . . . 1377 Melee . | . . . . . . . . . . . . . . . . . . . . . . . . . . . . . Ramming 5 | . 5 . . . . . . . . . . . . . . . . . . . . . . . . . . . Kinetic 3153 | 34 195 110 22 . . . 87 . . 82 . 276 . . . 42 570 261 . . . . . . . . . 1474 Thermal 25150 | 113 253 652 124 31 . . 354 87 . 318 . 521 . . 188 33 1197 1749 . 142 207 . . 2998 2754 . 7343 6086 Explosive 1267 | . . . . . . . . . . . . . . . . . . . . . . . . . . . . 1267 Electromagnetic 280 | . . . . . . . . . . . . . . . . . . . . 267 . . . . . . . 13 Impact 13 | . . . . . . . . . . . . . . . . . . . . . . . . . . . . 13 Slashing . | . . . . . . . . . . . . . . . . . . . . . . . . . . . . . Piercing . | . . . . . . . . . . . . . . . . . . . . . . . . . . . . . Highest Corruption 13 | . 1 1 . . . . . . . . . 2 2 2 2 . . 2 2 9 . 4 . . 2 . 11 13 Average Corruption 4 | . 1 1 . . . . . . . . . 1 2 2 2 . . 2 2 5 . 1 . . 1 . 4 11 Corruption Purged . | . . . . . . . . . . . . . . . . . . . . . . . . . . . . . Corruption Blocked . | . . . . . . . . . . . . . . . . . . . . . . . . . . . . . Effects 51 | . . . . . . . . . . . . . . 1 3 . . 6 . 2 . . . . 1 . 9 29 Message Errors 10 | . . . . . . . . . . . . . . . . . . 2 . . . . . . . . 3 5 Matter Fused 8 | . . . . . . . . . . . . . . . 1 . . 1 . 1 . . . . . . 1 4 Heat Flow Errors 4 | . . . . . . . . . . . . . . . 1 . . . . . . . . . . . 1 2 Energy Discharges 2 | . . . . . . . . . . . . . . . . . . 1 . . . . . . . . . 1 Parts Fused 2 | . . . . . . . . . . . . . . . . . . 1 . . . . . . . . . 1 Data Loss (minor) 3 | . . . . . . . . . . . . . . . . . . . . 1 . . . . 1 . 1 . Data Loss (major) 3 | . . . . . . . . . . . . . . . . . . 1 . . . . . . . . 1 1 Misfires 2 | . . . . . . . . . . . . . . 1 . . . . . . . . . . . . 1 . Alerts 1 | . . . . . . . . . . . . . . . . . . . . . . . . . . . . 1 Misdirections 7 | . . . . . . . . . . . . . . . . . . . . . . . . . . . . 7 Weapon Failures 9 | . . . . . . . . . . . . . . . 1 . . . . . . . . . . . 1 7 Overload Shots 111 | . . . . . . . . . . . . . . . . . . 12 . 4 2 . . 25 16 3 49 . Effects 2 | . . . . . . . . . . . . . . . . . . . . . . . . . . . 2 . Heat Surge 1 | . . . . . . . . . . . . . . . . . . . . . . . . . . . 1 . Short Circuit 1 | . . . . . . . . . . . . . . . . . . . . . . . . . . . 1 . Overflow Damage 1289 | . . . . . . . . . . . . . . . . 22 . . . . 7 . . . 30 . 800 430 Projectiles 1167 | . . . . . . . . . . . . . . . . 22 . . . . 7 . . . 30 . 800 308 Explosions 122 | . . . . . . . . . . . . . . . . . . . . . . . . . . . . 122 Melee . | . . . . . . . . . . . . . . . . . . . . . . . . . . . . . Knockbacks 25 | . . . . . . . . . . . . . . . . 1 3 . . . . . . . . . . 21 Impact . | . . . . . . . . . . . . . . . . . . . . . . . . . . . . . Kinetic 25 | . . . . . . . . . . . . . . . . 1 3 . . . . . . . . . . 21 Secondary . | . . . . . . . . . . . . . . . . . . . . . . . . . . . . . Self-Inflicted Damage 278 | . 2 . . . . . . . . . . . . . . . . . . 135 . . . . . . . 141 Shots 14 | . . . . . . . . . . . . . . . . . . . . 2 . . . . . . . 12 Rammed 3 | . 3 . . . . . . . . . . . . . . . . . . . . . . . . . . . Targets Rammed 3 | . 3 . . . . . . . . . . . . . . . . . . . . . . . . . . . Kicked . | . . . . . . . . . . . . . . . . . . . . . . . . . . . . . Crushed . | . . . . . . . . . . . . . . . . . . . . . . . . . . . . . Highest Temperature . | . . . . . . . . . . . . . . . . . . . . . . . . . . . . . Average Temperature . | . . . . . . . . . . . . . . . . . . . . . . . . . . . . . Received Heat Transfer 2166 | . 9 51 . 45 9 82 . 12 . 9 63 198 . . . . 299 67 27 60 . 36 . 126 581 . 198 294 Siege Activations . | . . . . . . . . . . . . . . . . . . . . . . . . . . . . . Martial Activations . | . . . . . . . . . . . . . . . . . . . . . . . . . . . . . Shielding Activations . | . . . . . . . . . . . . . . . . . . . . . . . . . . . . . Robots Disrupted . | . . . . . . . . . . . . . . . . . . . . . . . . . . . . . Combat Hostiles . | . . . . . . . . . . . . . . . . . . . . . . . . . . . . . Robots Corrupted . | . . . . . . . . . . . . . . . . . . . . . . . . . . . . . Combat Hostiles . | . . . . . . . . . . . . . . . . . . . . . . . . . . . . . Parts Fried . | . . . . . . . . . . . . . . . . . . . . . . . . . . . . . Impact Corruptions . | . . . . . . . . . . . . . . . . . . . . . . . . . . . . . Robots Melted 8 | . . 1 . . . . . . . . . 1 . . . . 1 4 . . . . . . . . 1 . Combat Hostiles 8 | . . 1 . . . . . . . . . 1 . . . . 1 4 . . . . . . . . 1 . Parts Melted 54 | . . 8 1 . . . 8 5 . 1 . 3 . . 2 . 9 7 . 3 . . . . 3 . 4 . Heat Transferred 17204 | 225 609 1554 259 74 . . 925 296 . 814 . 1258 . . 481 74 2775 1921 . 137 187 . . 1406 582 . 2612 1015 Parts Sabotaged . | . . . . . . . . . . . . . . . . . . . . . . . . . . . . . Parts Stolen . | . . . . . . . . . . . . . . . . . . . . . . . . . . . . . Parts Stripped . | . . . . . . . . . . . . . . . . . . . . . . . . . . . . . Power Chain Reactions 1 | . . . . . . . . . . . . . . . . . . . . . . . . . . . . 1 Alert | -11 -10 -10 -8 -8 -8 -6 -6 -6 -6 -5 -5 -5 -5 -5 -4 -4 -4 -4 -4 -4 -3 -3 -2 -2 -2 -1 -1 -1 ------- Run | Yrd Mat Sub Mat Sto Rec Fac Low Low Dat Pro Fac Upp Upp Zhi Pro Fac Ext Cet Arc Hub Res Tes Res Qua Frg Acc Com Ac0 Maximum Alert Level 5 | . . . . . . . . . . . . . . . . . . . . 2 1 . . . 5 4 4 . Low Security (%) 80 | 100 100 . 100 100 100 100 . . . . 100 . . . . 100 100 100 100 9 76 100 100 100 60 . . . Level 1 2 | . . . . . . . . . . . . . . . . . . . . 71 23 . . . . . . . Level 2 1 | . . . . . . . . . . . . . . . . . . . . 18 . . . . . . 10 . Level 3 4 | . . . . . . . . . . . . . . . . . . . . . . . . . . . 39 . Level 4 7 | . . . . . . . . . . . . . . . . . . . . . . . . . . 100 49 . Level 5 . | . . . . . . . . . . . . . . . . . . . . . . . . . . . . . High Security 2 | . . . . . . . . . . . . . . . . . . . . . . . . . 39 . . . Max Security . | . . . . . . . . . . . . . . . . . . . . . . . . . . . . . Peak Influence 1676 | 10 80 . 50 27 45 105 . . . . 30 . . . . 38 158 112 44 447 217 106 25 143 1676 1279 1127 . Initial 1100 | . . . 3 7 . 9 . . . . 4 . . . . 38 . 34 16 10 174 91 25 . 53 1100 618 . Average 172 | 1 37 . 19 8 12 39 . . . . 5 . . . . 22 72 43 31 239 181 86 15 73 693 1183 883 . Influence Increases 4631 | 10 197 40 57 20 45 180 80 30 . 60 49 . . . 95 5 248 209 28 467 118 45 . 210 216 194 744 1284 Destroy 0b10 Robot/C 1180 | . 120 40 40 . . . 60 20 . 60 . . . . 60 . 180 160 20 20 40 . . 20 60 . 280 . Destroy 0b10 Robot/NC 65 | 10 15 . 5 5 . . . . . . . . . . 10 5 . 10 . 5 . . . . . . . . Destroy Leader 164 | . 32 . 12 . . . 20 10 . . . . . . 10 . 30 . . . 10 . . . . . 40 . Allied During Kill 32 | . . . . . . . . . . . . . . . . . 15 11 6 . . . . . . . . . Disable Machine 92 | . . . . . . . . . . . . . . . . . . . . 48 . . . 4 . 12 8 20 Anti-Garrison Action 150 | . . . . . . . . . . . . . . . . . . . . . . . . . . 150 . . Destroy Structure 2078 | . . . . . . . . . . . 4 . . . . . 8 28 2 334 8 . . 6 6 32 386 1264 Partial Spotted 210 | . 30 . . 15 . 15 . . . . . . . . . . . . . . 15 45 . 90 . . . . Lose Combat Pursuer 660 | . . . . . 45 165 . . . . 45 . . . 15 . 15 . . 60 45 . . 90 150 . 30 . Influence Decreases 5257 | 10 155 72 40 47 15 105 115 71 29 50 44 15 . . 15 85 165 231 45 64 348 201 61 82 150 944 806 1292 Entered New Map 3640 | . . 26 7 20 . 21 55 26 29 . 6 8 . . . 42 . 49 45 34 273 126 36 . 75 914 646 1202 Time Decay 1357 | 10 155 46 33 27 15 84 60 45 . 50 38 7 . . 15 43 105 182 . 30 75 75 15 82 45 30 90 . Lost Part 200 | . . . . . . . . . . . . . . . . . . . . . . . 10 . 30 . 70 90 Lost Ally 60 | . . . . . . . . . . . . . . . . . 60 . . . . . . . . . . . Squads Dispatched 9 | . . . 1 2 . . . . . . 1 . . . . . . . . . . . . 1 1 1 2 . Investigation . | . . . . . . . . . . . . . . . . . . . . . . . . . . . . . Extermination 1 | . . . . . . . . . . . . . . . . . . . . . . . . 1 . . . . Reinforcement 7 | . . . 1 2 . . . . . . 1 . . . . . . . . . . . . . 1 . 2 . Assault 1 | . . . . . . . . . . . . . . . . . . . . . . . . . . 1 . . Garrison . | . . . . . . . . . . . . . . . . . . . . . . . . . . . . . Intercept . | . . . . . . . . . . . . . . . . . . . . . . . . . . . . . Searches Triggered . | . . . . . . . . . . . . . . . . . . . . . . . . . . . . . Construction Impeded . | . . . . . . . . . . . . . . . . . . . . . . . . . . . . . Haulers Reinforced 1 | . . . . . . . . . . . 1 . . . . . . . . . . . . . . . . . Active Scanning Responses . | . . . . . . . . . . . . . . . . . . . . . . . . . . . . . Cargo Convoy Interrupts . | . . . . . . . . . . . . . . . . . . . . . . . . . . . . . Stealth | -11 -10 -10 -8 -8 -8 -6 -6 -6 -6 -5 -5 -5 -5 -5 -4 -4 -4 -4 -4 -4 -3 -3 -2 -2 -2 -1 -1 -1 --------- Run | Yrd Mat Sub Mat Sto Rec Fac Low Low Dat Pro Fac Upp Upp Zhi Pro Fac Ext Cet Arc Hub Res Tes Res Qua Frg Acc Com Ac0 Distress Signals 22 | . 1 . 1 2 2 1 . . . . . . . . . . 2 . . . . . . . . . 13 . Communications Jammed . | . . . . . . . . . . . . . . . . . . . . . . . . . . . . . Distress Signals . | . . . . . . . . . . . . . . . . . . . . . . . . . . . . . Times Spotted 286 | . 11 9 9 8 4 18 3 1 . 2 10 17 . . 4 9 16 10 4 18 18 9 . 9 31 8 22 36 Peak Tracking Total 20 | . 5 2 4 7 4 8 3 1 . 1 7 12 . . 2 7 9 5 4 17 14 8 . 9 19 11 7 20 Tactical Retreats 20 | . . 1 . . 1 4 . . . . 2 . . . 1 . 1 . . 1 1 . . 2 3 . 1 2 Traps | -11 -10 -10 -8 -8 -8 -6 -6 -6 -6 -5 -5 -5 -5 -5 -4 -4 -4 -4 -4 -4 -3 -3 -2 -2 -2 -1 -1 -1 ------- Run | Yrd Mat Sub Mat Sto Rec Fac Low Low Dat Pro Fac Upp Upp Zhi Pro Fac Ext Cet Arc Hub Res Tes Res Qua Frg Acc Com Ac0 Traps Triggered 9 | . 1 . . . . 2 . . . . 1 . . . . . 3 . . . . . . . 1 . 1 . Indirectly . | . . . . . . . . . . . . . . . . . . . . . . . . . . . . . Trap Hack Attempts . | . . . . . . . . . . . . . . . . . . . . . . . . . . . . . Triggered . | . . . . . . . . . . . . . . . . . . . . . . . . . . . . . Disarmed . | . . . . . . . . . . . . . . . . . . . . . . . . . . . . . Reprogrammed . | . . . . . . . . . . . . . . . . . . . . . . . . . . . . . Reused . | . . . . . . . . . . . . . . . . . . . . . . . . . . . . . Traps Extracted . | . . . . . . . . . . . . . . . . . . . . . . . . . . . . . Installed . | . . . . . . . . . . . . . . . . . . . . . . . . . . . . . Triggered . | . . . . . . . . . . . . . . . . . . . . . . . . . . . . . Machines | -11 -10 -10 -8 -8 -8 -6 -6 -6 -6 -5 -5 -5 -5 -5 -4 -4 -4 -4 -4 -4 -3 -3 -2 -2 -2 -1 -1 -1 ---------- Run | Yrd Mat Sub Mat Sto Rec Fac Low Low Dat Pro Fac Upp Upp Zhi Pro Fac Ext Cet Arc Hub Res Tes Res Qua Frg Acc Com Ac0 Machines Disabled 30 | . . . . . . . . . . . . . . . . . . 1 . 12 . . . 1 1 4 2 9 Max in Single Turn 7 | . . . . . . . . . . . . . . . . . . 1 . 7 . . . 1 1 3 1 4 Garrison Access 4 | . . . . . . . . . . . . . . . . . . . . 1 1 1 . . . 1 . . Network Hub 2 | . . . . . . . . . . . . . . . . . . . . 2 . . . . . . . . Machines Repaired . | . . . . . . . . . . . . . . . . . . . . . . . . . . . . . Machines Dismantled . | . . . . . . . . . . . . . . . . . . . . . . . . . . . . . Machines Sabotaged . | . . . . . . . . . . . . . . . . . . . . . . . . . . . . . Overloaded Fab Kills . | . . . . . . . . . . . . . . . . . . . . . . . . . . . . . Hacking | -11 -10 -10 -8 -8 -8 -6 -6 -6 -6 -5 -5 -5 -5 -5 -4 -4 -4 -4 -4 -4 -3 -3 -2 -2 -2 -1 -1 -1 --------- Run | Yrd Mat Sub Mat Sto Rec Fac Low Low Dat Pro Fac Upp Upp Zhi Pro Fac Ext Cet Arc Hub Res Tes Res Qua Frg Acc Com Ac0 Machines Accessed 26 | . 1 1 . 2 . 1 . . 4 . 1 . . 1 . 1 1 4 . 1 2 2 1 . . 1 1 1 Terminals 16 | . 1 . . 2 . 1 . . . . 1 . . . . 1 1 4 . . 1 1 1 . . 1 1 . Fabricators . | . . . . . . . . . . . . . . . . . . . . . . . . . . . . . Repair Stations . | . . . . . . . . . . . . . . . . . . . . . . . . . . . . . Recycling Units . | . . . . . . . . . . . . . . . . . . . . . . . . . . . . . Scanalyzers . | . . . . . . . . . . . . . . . . . . . . . . . . . . . . . Garrison Access 3 | . . . . . . . . . . . . . . . . . . . . 1 1 1 . . . . . . Total Hacks 76 | . 1 4 . 2 . 2 . . 28 . 1 . . 1 . 1 3 10 . 1 6 3 1 . . 1 1 10 Successful 76 | . 1 4 . 2 . 2 . . 28 . 1 . . 1 . 1 3 10 . 1 6 3 1 . . 1 1 10 Failed . | . . . . . . . . . . . . . . . . . . . . . . . . . . . . . Catastrophic . | . . . . . . . . . . . . . . . . . . . . . . . . . . . . . Database Lockouts . | . . . . . . . . . . . . . . . . . . . . . . . . . . . . . Manual 16 | . 1 . . 1 . 1 . . . . 1 . . . . 1 . 2 . . 4 2 1 . . 1 . 1 Terminals 30 | . 1 . . 2 . 2 . . . . 1 . . . . 1 3 10 . . 5 2 1 . . 1 1 . Fabricators . | . . . . . . . . . . . . . . . . . . . . . . . . . . . . . Repair Stations . | . . . . . . . . . . . . . . . . . . . . . . . . . . . . . Recycling Units . | . . . . . . . . . . . . . . . . . . . . . . . . . . . . . Scanalyzers . | . . . . . . . . . . . . . . . . . . . . . . . . . . . . . Garrison Access 3 | . . . . . . . . . . . . . . . . . . . . 1 1 1 . . . . . . Terminal Hacks 73 | . 1 4 . 2 . 2 . . 28 . 1 . . 1 . 1 3 10 . . 5 2 1 . . 1 1 10 Record 27 | . . 4 . . . . . . 11 . . . . 1 . . 2 9 . . . . . . . . . . Part Schematic 8 | . . . . . . . . . 8 . . . . . . . . . . . . . . . . . . . Robot Schematic 6 | . . . . . . . . . 6 . . . . . . . . . . . . . . . . . . . Robot Analysis 1 | . . . . . . 1 . . . . . . . . . . . . . . . . . . . . . . Prototype ID Bank 4 | . 1 . . . . . . . 3 . . . . . . . . . . . . . . . . . . . Open Door 4 | . . . . 2 . . . . . . . . . . . . . 1 . . . . . . . . 1 . Branch Access Points 7 | . . . . . . 1 . . . . 1 . . . . 1 . . . . 1 1 1 . . 1 . . Machine Index 2 | . . . . . . . . . . . . . . . . . . . . . 1 1 . . . . . . Terminal Index 1 | . . . . . . . . . . . . . . . . . . . . . 1 . . . . . . . Garrison Index 1 | . . . . . . . . . . . . . . . . . . . . . 1 . . . . . . . Alert Level 1 | . . . . . . . . . . . . . . . . . 1 . . . . . . . . . . . Investigation Status 1 | . . . . . . . . . . . . . . . . . . . . . 1 . . . . . . . Gate Test 138-A 2 | . . . . . . . . . . . . . . . . . . . . . . . . . . . . 2 Gate Test 138-B 3 | . . . . . . . . . . . . . . . . . . . . . . . . . . . . 3 Gate Test 138-C 2 | . . . . . . . . . . . . . . . . . . . . . . . . . . . . 2 Gate Test 138-END 3 | . . . . . . . . . . . . . . . . . . . . . . . . . . . . 3 Fabricator Hacks . | . . . . . . . . . . . . . . . . . . . . . . . . . . . . . Repair Station Hacks . | . . . . . . . . . . . . . . . . . . . . . . . . . . . . . Recycling Unit Hacks . | . . . . . . . . . . . . . . . . . . . . . . . . . . . . . Scanalyzer . | . . . . . . . . . . . . . . . . . . . . . . . . . . . . . Garrison Access Hacks 3 | . . . . . . . . . . . . . . . . . . . . 1 1 1 . . . . . . Seal Access 3 | . . . . . . . . . . . . . . . . . . . . 1 1 1 . . . . . . Unauthorized Hacks . | . . . . . . . . . . . . . . . . . . . . . . . . . . . . . Terminals . | . . . . . . . . . . . . . . . . . . . . . . . . . . . . . Fabricators . | . . . . . . . . . . . . . . . . . . . . . . . . . . . . . Repair Stations . | . . . . . . . . . . . . . . . . . . . . . . . . . . . . . Recycling Units . | . . . . . . . . . . . . . . . . . . . . . . . . . . . . . Scanalyzers . | . . . . . . . . . . . . . . . . . . . . . . . . . . . . . Garrison Access . | . . . . . . . . . . . . . . . . . . . . . . . . . . . . . Data Cores Recovered . | . . . . . . . . . . . . . . . . . . . . . . . . . . . . . Used . | . . . . . . . . . . . . . . . . . . . . . . . . . . . . . Hacking Detections 3 | . . . . . . . . . . . . . . . . . . 1 . . . 1 . . . . 1 . Full Trace Events . | . . . . . . . . . . . . . . . . . . . . . . . . . . . . . Feedback Events . | . . . . . . . . . . . . . . . . . . . . . . . . . . . . . Feedback Blocked . | . . . . . . . . . . . . . . . . . . . . . . . . . . . . . Robot Schematics Acquired 6 | . . . . . . . . . 6 . . . . . . . . . . . . . . . . . . . Robots Built . | . . . . . . . . . . . . . . . . . . . . . . . . . . . . . Authchips . | . . . . . . . . . . . . . . . . . . . . . . . . . . . . . Time . | . . . . . . . . . . . . . . . . . . . . . . . . . . . . . Total Robot Build Rating . | . . . . . . . . . . . . . . . . . . . . . . . . . . . . . Part Schematics Acquired 8 | . . . . . . . . . 8 . . . . . . . . . . . . . . . . . . . Parts Built . | . . . . . . . . . . . . . . . . . . . . . . . . . . . . . Authchips . | . . . . . . . . . . . . . . . . . . . . . . . . . . . . . Time . | . . . . . . . . . . . . . . . . . . . . . . . . . . . . . Total Part Build Rating . | . . . . . . . . . . . . . . . . . . . . . . . . . . . . . Part Studies Acquired . | . . . . . . . . . . . . . . . . . . . . . . . . . . . . . Parts Repaired . | . . . . . . . . . . . . . . . . . . . . . . . . . . . . . Time . | . . . . . . . . . . . . . . . . . . . . . . . . . . . . . Parts Recycled . | . . . . . . . . . . . . . . . . . . . . . . . . . . . . . Recycled Matter . | . . . . . . . . . . . . . . . . . . . . . . . . . . . . . Retrieved Matter . | . . . . . . . . . . . . . . . . . . . . . . . . . . . . . Retrieved Components . | . . . . . . . . . . . . . . . . . . . . . . . . . . . . . Parts Scanalyzed . | . . . . . . . . . . . . . . . . . . . . . . . . . . . . . Part Schematics Acquired . | . . . . . . . . . . . . . . . . . . . . . . . . . . . . . Parts Damaged . | . . . . . . . . . . . . . . . . . . . . . . . . . . . . . Bothacking | -11 -10 -10 -8 -8 -8 -6 -6 -6 -6 -5 -5 -5 -5 -5 -4 -4 -4 -4 -4 -4 -3 -3 -2 -2 -2 -1 -1 -1 ------------ Run | Yrd Mat Sub Mat Sto Rec Fac Low Low Dat Pro Fac Upp Upp Zhi Pro Fac Ext Cet Arc Hub Res Tes Res Qua Frg Acc Com Ac0 Used RIF Installer . | . . . . . . . . . . . . . . . . . . . . . . . . . . . . . Robots Hacked . | . . . . . . . . . . . . . . . . . . . . . . . . . . . . . Non-combat . | . . . . . . . . . . . . . . . . . . . . . . . . . . . . . Combat . | . . . . . . . . . . . . . . . . . . . . . . . . . . . . . Robot Hacks Applied . | . . . . . . . . . . . . . . . . . . . . . . . . . . . . . Relay Couplers Released 2 | . . . . . . . . . . . . . . . . . . . . 1 . . . . . 1 . . Machine Destruction 2 | . . . . . . . . . . . . . . . . . . . . 1 . . . . . 1 . . Fabnet Peak Effective % . | . . . . . . . . . . . . . . . . . . . . . . . . . . . . . Robots Rewired . | . . . . . . . . . . . . . . . . . . . . . . . . . . . . . Allies Hacked . | . . . . . . . . . . . . . . . . . . . . . . . . . . . . . Hacks Repelled . | . . . . . . . . . . . . . . . . . . . . . . . . . . . . . Allies | -11 -10 -10 -8 -8 -8 -6 -6 -6 -6 -5 -5 -5 -5 -5 -4 -4 -4 -4 -4 -4 -3 -3 -2 -2 -2 -1 -1 -1 -------- Run | Yrd Mat Sub Mat Sto Rec Fac Low Low Dat Pro Fac Upp Upp Zhi Pro Fac Ext Cet Arc Hub Res Tes Res Qua Frg Acc Com Ac0 Total Allies 16 | . . . . . . . . . . . . . . . . . 11 5 . . . . . . . . . . Largest Group 10 | . . . . . . . . . . . . . . . . . 10 7 6 . . . . . . . . . Highest-Rated Group 677 | . . . . . . . . . . . . . . . . . 555 677 518 . . . . . . . . . Highest-Rated Ally 159 | . . . . . . . . . . . . . . . . . 159 159 96 . . . . . . . . . Total Orders . | . . . . . . . . . . . . . . . . . . . . . . . . . . . . . Ally Attacks 33 | . . . . . . . . . . . . . . . . . 13 13 7 . . . . . . . . . Total Damage 1110 | . . . . . . . . . . . . . . . . . 375 456 279 . . . . . . . . . Kills 5 | . . . . . . . . . . . . . . . . . 2 2 1 . . . . . . . . . Allies Corrupted . | . . . . . . . . . . . . . . . . . . . . . . . . . . . . . Allies Melted . | . . . . . . . . . . . . . . . . . . . . . . . . . . . . . Intel | -11 -10 -10 -8 -8 -8 -6 -6 -6 -6 -5 -5 -5 -5 -5 -4 -4 -4 -4 -4 -4 -3 -3 -2 -2 -2 -1 -1 -1 ------- Run | Yrd Mat Sub Mat Sto Rec Fac Low Low Dat Pro Fac Upp Upp Zhi Pro Fac Ext Cet Arc Hub Res Tes Res Qua Frg Acc Com Ac0 Active Infowar (turns) 3326 | 28 263 318 62 51 71 135 85 78 21 102 89 97 33 47 78 64 168 320 13 53 101 102 35 127 126 43 245 371 Optics 1205 | . 38 318 62 51 71 135 85 78 21 102 89 97 33 25 . . . . . . . . . . . . . . Terrain 2926 | 28 263 318 62 51 71 135 85 78 21 102 89 97 33 47 78 64 168 320 13 53 101 102 35 127 126 43 216 . Machine Analysis 3020 | . . 303 62 51 71 135 85 78 21 102 89 97 33 47 78 64 168 320 13 53 101 102 35 127 126 43 245 371 Robot Analysis Total 1 | . . . . . . 1 . . . . . . . . . . . . . . . . . . . . . . Derelict Logs Recovered 7 | . . . . . . . . . . 2 . 2 2 . 1 . . . . . . . . . . . . . Drone Launches . | . . . . . . . . . . . . . . . . . . . . . . . . . . . . . Drone Recoveries . | . . . . . . . . . . . . . . . . . . . . . . . . . . . . . Exploration | -11 -10 -10 -8 -8 -8 -6 -6 -6 -6 -5 -5 -5 -5 -5 -4 -4 -4 -4 -4 -4 -3 -3 -2 -2 -2 -1 -1 -1 ------------- Run | Yrd Mat Sub Mat Sto Rec Fac Low Low Dat Pro Fac Upp Upp Zhi Pro Fac Ext Cet Arc Hub Res Tes Res Qua Frg Acc Com Ac0 Turns Passed 3355 | 57 263 318 62 51 71 135 85 78 21 102 89 97 33 47 78 64 168 320 13 53 101 102 35 127 126 43 245 371 Spaces Moved 9064 | 46 388 577 148 216 258 597 298 332 95 395 322 283 147 171 253 299 457 236 58 168 382 426 142 323 431 232 454 930 Core 27 | 27 . . . . . . . . . . . . . . . . . . . . . . . . . . . . Treads . | . . . . . . . . . . . . . . . . . . . . . . . . . . . . . Legs . | . . . . . . . . . . . . . . . . . . . . . . . . . . . . . Wheels 103 | 19 84 . . . . . . . . . . . . . . . . . . . . . . . . . . . Hover . | . . . . . . . . . . . . . . . . . . . . . . . . . . . . . Flight 8934 | . 304 577 148 216 258 597 298 332 95 395 322 283 147 171 253 299 457 236 58 168 382 426 142 323 431 232 454 930 Fastest Speed 13 | 50 34 34 22 22 22 22 22 22 22 22 22 22 22 20 20 20 20 20 22 22 22 22 22 22 14 14 14 13 Average Speed 23 | 66 46 34 28 22 22 22 22 22 22 22 22 22 22 20 20 20 20 26 22 24 23 22 22 22 18 14 18 18 Slowest Speed 90 | 90 90 34 34 22 22 22 22 22 22 22 22 22 22 24 20 20 20 29 22 25 25 22 22 22 25 18 22 30 Overloaded Moves . | . . . . . . . . . . . . . . . . . . . . . . . . . . . . . Propulsion Burnouts . | . . . . . . . . . . . . . . . . . . . . . . . . . . . . . Robots Hopped 111 | . 4 . 4 2 7 15 1 . . . 7 . . . 1 8 6 . . 6 14 6 . 6 10 . 6 8 Potential Cave-ins 110 | . . . . . . . . . . . . . . . . . . . . . . . . . . 3 104 3 Cave-ins Triggered 13 | . . . . . . . . . . . . . . . . . . . . . . . . . . . 13 . Teleports 2 | . . . . . . . . . . . . . . . . . . . . . . . . . 1 . . 1 Exploration Rate (%) 46 | 4 56 44 22 44 48 28 63 59 79 80 20 62 39 65 56 15 92 97 95 34 16 51 5 42 40 7 26 59 Regions Visited 28 Branch Regions 20 Pre-discovered Areas 3 | . . 2 . . . . . . 1 . . . . . . . . . . . . . . . . . . . Known Exits Taken 28 | 1 1 1 1 1 1 1 1 1 1 1 1 1 1 1 1 1 1 1 1 1 1 1 1 1 1 1 1 . Unknown Exits Taken . | . . . . . . . . . . . . . . . . . . . . . . . . . . . . . Scrap Searched 5 | . . . . . . . . 1 . 1 . 1 1 . 1 . . . . . . . . . . . . . Spaces Dug 269 | . . . . . . . . . . . 1 . . . 3 . . 1 . . . . . . . . 203 61 Terrain Destroyed 1221 | . . . . . . . . . . . 2 6 . . 8 . 2 10 . 324 9 . . 18 15 14 289 524 Melee . | . . . . . . . . . . . . . . . . . . . . . . . . . . . . . Projectile 536 | . . . . . . . . . . . 2 6 . . 8 . 2 10 . 9 9 . . 18 15 14 289 154 AOE 685 | . . . . . . . . . . . . . . . . . . . . 315 . . . . . . . 370 Terrain Rammed . | . . . . . . . . . . . . . . . . . . . . . . . . . . . . . Walls Destroyed . | . . . . . . . . . . . . . . . . . . . . . . . . . . . . . Machines Disabled . | . . . . . . . . . . . . . . . . . . . . . . . . . . . . . Actions | -11 -10 -10 -8 -8 -8 -6 -6 -6 -6 -5 -5 -5 -5 -5 -4 -4 -4 -4 -4 -4 -3 -3 -2 -2 -2 -1 -1 -1 --------- Run | Yrd Mat Sub Mat Sto Rec Fac Low Low Dat Pro Fac Upp Upp Zhi Pro Fac Ext Cet Arc Hub Res Tes Res Qua Frg Acc Com Ac0 Total 9531 | 58 422 637 153 214 254 584 302 333 94 398 324 291 146 181 258 291 484 463 57 164 370 426 144 333 439 234 495 982 Wait 246 | . . 34 . . . . . . . . . . . . . . 19 193 . . . . . . . . . . Move 8816 | 45 379 576 139 211 244 570 295 331 94 394 307 282 146 170 250 283 444 235 57 157 354 413 141 310 411 231 432 915 Hop 99 | . 4 . 4 2 6 11 1 . . . 7 . . . 1 7 6 . . 4 13 6 . 6 9 . 6 6 Pick Up 22 | . . 1 . . . 3 . 1 . . 5 . . 2 . . . . . . . 6 . . . . 3 1 Fast Attach 44 | 8 11 2 5 . . . . . . . . . . 4 . . . 3 . . 1 . 1 2 3 . . 4 Attach 28 | . . . . . . . . . . . 1 . . . . . . 10 . . . . 1 . 2 . 1 13 Detach 7 | . . . . . . . . . . . 1 . . . . . . 3 . . . . . 2 . . . 1 Swap 18 | . 3 . 3 . . . 1 . . . . . . 1 . . . 1 . . . 1 . . 3 1 2 2 Drop 19 | . 2 1 . . . . . . . . . . . 4 . . . 7 . . . . 1 . 2 . 1 1 Fire 219 | 5 20 23 2 1 4 . 5 1 . 4 3 9 . . 7 1 15 11 . 3 2 . . 13 8 2 41 39 Melee . | . . . . . . . . . . . . . . . . . . . . . . . . . . . . . Ram 3 | . 3 . . . . . . . . . . . . . . . . . . . . . . . . . . . Kick . | . . . . . . . . . . . . . . . . . . . . . . . . . . . . . Crush . | . . . . . . . . . . . . . . . . . . . . . . . . . . . . . Escape Stasis 10 | . . . . . . . . . . . . . . . . . . . . . . . . . 1 . 9 . Rewire . | . . . . . . . . . . . . . . . . . . . . . . . . . . . . . Trap . | . . . . . . . . . . . . . . . . . . . . . . . . . . . . . Miscellaneous . | . . . . . . . . . . . . . . . . . . . . . . . . . . . . . Route ------- -11/Scrapyard -10/Materials (discovered 4 exits: *Mat x2 / *Min / *Sub) -10/Subcaves -8/Materials (discovered 2 exits: *Sto x2) -8/Storage (discovered 2 exits: Fac / *Rec) -8/Recycling -6/Factory (discovered 3 exits: *Fac / *Low x2) -6/Lower Caves -6/Lower Caves (discovered 2 exits: Fac / *Dat) -6/Data Miner -5/Proximity Caves -5/Factory (discovered 3 exits: *Fac / *Upp x2) -5/Upper Caves -5/Upper Caves (discovered 2 exits: Fac / *Zhi) -5/Zhirov -4/Proximity Caves -4/Factory (discovered 5 exits: Upp x2 / *Ext x2 / Arm) -4/Extension (discovered 3 exits: *Res x2 / *Cet) -4/Cetus (discovered 3 exits: *Res x2 / *Arc) -4/Archives (discovered 3 exits: Res / *Hub x2) -4/Hub_04(d) -3/Research (discovered 3 exits: Res / *Tes x2) -3/Testing -2/Research (discovered 2 exits: *Qua x2) -2/Quarantine (discovered 3 exits: *Acc / *Sec / *Frg) -2/Protoforge -1/Access -1/Command (discovered 3 exits: Sur x2 / *Ac0) -1/Access_0 0b11 Command History --------- Turn | Location | Event 1 | -11/Scrapyard | Upgraded with Propulsion slot (x5) 1 | -11/Scrapyard | Upgraded with Utility slot (x10) 1 | -11/Scrapyard | Upgraded with Weapon slot (x7) 11 | -11/Scrapyard | Identified exit to Materials 11 | -11/Scrapyard | Discovered exit to Materials (range 20) 58 | -11/Scrapyard | Entered Materials 59 | -10/Materials | Identified exit to Subcaves 59 | -10/Materials | Discovered exit to Subcaves (range 10) 95 | -10/Materials | Identified exit to Mines 95 | -10/Materials | Discovered exit to Mines (range 16) 196 | -10/Materials | Identified exit to Materials 196 | -10/Materials | Discovered exit to Materials (range 15) 248 | -10/Materials | Discovered exit to Materials (range 22) 321 | -10/Materials | Entered Subcaves 322 | -10/Subcaves | Approached by a straggling Scientist 323 | -10/Subcaves | Reached level 2 430 | -10/Subcaves | Learned location of Zion (-7) 430 | -10/Subcaves | Met a Zionite searching for "candidates" 449 | -10/Subcaves | Visited Clippyterm 450 | -10/Subcaves | Learned location of Deep Caves (-7) 461 | -10/Subcaves | Ambushed by Subdwellers from Twisted Machinery 490 | -10/Subcaves | Build established: Wizard-Scout 561 | -10/Subcaves | Ambushed by angry Subdweller bent on revenge 568 | -10/Subcaves | Ambushed by Subdwellers from Twisted Machinery 634 | -10/Subcaves | Identified exit to Materials 634 | -10/Subcaves | Discovered exit to Materials (range 16) 639 | -10/Subcaves | Entered Materials 641 | -8/Materials | Reached level 3 641 | -8/Materials | Reached level 4 641 | -8/Materials | Reached level 5 641 | -8/Materials | Reached level 6 696 | -8/Materials | Identified exit to Storage 696 | -8/Materials | Discovered exit to Storage (range 20) 696 | -8/Materials | Discovered exit to Storage (range 32) 701 | -8/Materials | Entered Storage 703 | -8/Storage | Reached level 7 726 | -8/Storage | Identified exit to Factory 726 | -8/Storage | Discovered exit to Factory (range 16) 749 | -8/Storage | Identified exit to Recycling 749 | -8/Storage | Discovered exit to Recycling (range 16) 752 | -8/Storage | Used back door to open Recycling access 752 | -8/Storage | Entered Recycling 795 | -8/Recycling | Identified exit to Factory 795 | -8/Recycling | Discovered exit to Factory (range 30) 823 | -8/Recycling | Entered Factory 825 | -6/Factory | Reached level 8 825 | -6/Factory | Reached level 9 825 | -6/Factory | Reached level 10 825 | -6/Factory | Reached level 11 825 | -6/Factory | Reached level 12 842 | -6/Factory | Identified exit to Lower Caves 872 | -6/Factory | Identified exit to Factory 872 | -6/Factory | Discovered exit to Factory (range 14) 958 | -6/Factory | Entered Lower Caves 960 | -6/Lower Caves | Reached level 13 1037 | -6/Lower Caves | Identified exit to Lower Caves 1037 | -6/Lower Caves | Discovered exit to Lower Caves (range 20) 1043 | -6/Lower Caves | Entered another Lower Caves area 1044 | -6/Lower Caves | Discovered exit to Factory (range 15) 1112 | -6/Lower Caves | Identified exit to Data Miner 1112 | -6/Lower Caves | Discovered exit to Data Miner (range 12) 1120 | -6/Lower Caves | Attracted the attention of an 0b10 checkpoint 1121 | -6/Lower Caves | Entered Data Miner 1121 | -6/Data Miner | Identified exit to Proximity Caves 1121 | -6/Data Miner | Discovered exit to Proximity Caves (range 6) 1122 | -6/Data Miner | Met Data Miner 1123 | -6/Data Miner | Reached level 14 1131 | -6/Data Miner | Learned location of Section 7 (-2) 1131 | -6/Data Miner | Acquired the access code to Warlord's prototype stash 1135 | -6/Data Miner | Received God Mode back door access code from Data Miner 1142 | -6/Data Miner | Entered Proximity Caves 1144 | -5/Proximity Caves | Reached level 15 1195 | -5/Proximity Caves | Learned Factory terminal intel 1230 | -5/Proximity Caves | Discovered exit to Factory (range 16) 1244 | -5/Proximity Caves | Entered Factory 1245 | -5/Factory | Loaded intel: 26 terminal locations 1246 | -5/Factory | Reached level 16 1251 | -5/Factory | Identified exit to Upper Caves 1263 | -5/Factory | Spotted B-75 Beast 1325 | -5/Factory | Identified exit to Factory 1325 | -5/Factory | Discovered exit to Factory (range 13) 1325 | -5/Factory | Allied Derelicts emerged from ambush trap array 1333 | -5/Factory | Entered Upper Caves 1335 | -5/Upper Caves | Reached level 17 1345 | -5/Upper Caves | Learned Factory garrison access intel 1389 | -5/Upper Caves | Identified exit to Upper Caves 1406 | -5/Upper Caves | Attracted the attention of an 0b10 checkpoint 1421 | -5/Upper Caves | Attracted the attention of an 0b10 outpost 1430 | -5/Upper Caves | Entered another Upper Caves area 1431 | -5/Upper Caves | Discovered exit to Factory (range 15) 1444 | -5/Upper Caves | Entered a destroyed Warlord outpost 1445 | -5/Upper Caves | Identified exit to Zhirov 1463 | -5/Upper Caves | Entered Zhirov 1463 | -5/Zhirov | Identified exit to Proximity Caves 1463 | -5/Zhirov | Discovered exit to Proximity Caves (range 4) 1468 | -5/Zhirov | Met Zhirov 1494 | -5/Zhirov | Found Alien Artifact 1499 | -5/Zhirov | Found Alien Artifact 1510 | -5/Zhirov | Entered Proximity Caves 1512 | -4/Proximity Caves | Reached level 18 1512 | -4/Proximity Caves | Reached level 19 1518 | -4/Proximity Caves | Attracted the attention of an 0b10 checkpoint 1528 | -4/Proximity Caves | Learned Research emergency access door positions 1579 | -4/Proximity Caves | Discovered exit to Factory (range 25) 1588 | -4/Proximity Caves | Entered Factory 1589 | -4/Factory | Loaded intel: 3 garrison access locations 1590 | -4/Factory | Reached level 20 1591 | -4/Factory | Identified exit to Upper Caves 1591 | -4/Factory | Identified exit to Extension 1591 | -4/Factory | Identified exit to Armory 1610 | -4/Factory | Spotted B-86 Titan 1652 | -4/Factory | Entered Extension 1652 | -4/Extension | Spotted B-86 Titan 1652 | -4/Extension | Spotted B-86 Titan 1652 | -4/Extension | Identified exit to Cetus 1652 | -4/Extension | Discovered exit to Cetus (range 191) 1662 | -4/Extension | Rescued a captive Derelict 1666 | -4/Extension | Rescued a captive Derelict 1678 | -4/Extension | Reached level 21 1683 | -4/Extension | Rescued a captive Derelict 1684 | -4/Extension | Rescued a captive Derelict 1689 | -4/Extension | Rescued a captive Derelict 1742 | -4/Extension | Rescued a captive Derelict 1750 | -4/Extension | Identified exit to Research 1750 | -4/Extension | Discovered exit to Research (range 14) 1766 | -4/Extension | Rescued a captive Derelict 1773 | -4/Extension | Rescued a captive Derelict 1777 | -4/Extension | Rescued a captive Derelict 1781 | -4/Extension | Rescued A7 1795 | -4/Extension | Rescued a captive Derelict 1796 | -4/Extension | Rescued a captive Derelict 1799 | -4/Extension | Discovered exit to Research (range 13) 1820 | -4/Extension | Entered Cetus 1820 | -4/Cetus | Accompanied by 2 allies (A7) 1820 | -4/Cetus | Spotted Cetus Guard 1820 | -4/Cetus | Spotted Cetus Guard 1820 | -4/Cetus | Spotted Cetus Guard 1820 | -4/Cetus | Spotted Cetus Guard 1822 | -4/Cetus | Reached level 22 1824 | -4/Cetus | Discovered exit to Research (range 37) 1825 | -4/Cetus | Acquired a Cetus Manufacturing Module code from A7 1829 | -4/Cetus | Destroyed Cetus Guard 1842 | -4/Cetus | Allies destroyed Cetus Guard 1847 | -4/Cetus | Destroyed Cetus Guard 1850 | -4/Cetus | Destroyed Cetus Guard 1888 | -4/Cetus | Started Cetus Manufacturing Module 1913 | -4/Cetus | Manufactured an Enhanced Grunt 1938 | -4/Cetus | Manufactured an Enhanced Grunt 1963 | -4/Cetus | Manufactured an Enhanced Grunt 1988 | -4/Cetus | Manufactured an Enhanced Grunt 2013 | -4/Cetus | Manufactured an Enhanced Grunt 2074 | -4/Cetus | Found a strange terminal 2077 | -4/Cetus | Identified exit to Archives 2077 | -4/Cetus | Discovered exit to Archives (range 26) 2081 | -4/Cetus | Discovered exit to Research (range 36) 2081 | -4/Cetus | Spotted Cetus Guard 2081 | -4/Cetus | Spotted Cetus Guard 2081 | -4/Cetus | Spotted Cetus Guard 2081 | -4/Cetus | Spotted Cetus Guard 2087 | -4/Cetus | Destroyed Cetus Guard 2091 | -4/Cetus | Destroyed Cetus Guard 2095 | -4/Cetus | Destroyed Cetus Guard 2099 | -4/Cetus | Destroyed Cetus Guard 2108 | -4/Cetus | Met Revision 17 2140 | -4/Cetus | Entered Archives 2140 | -4/Archives | Accompanied by 7 allies (A7) 2142 | -4/Archives | Reached level 23 2144 | -4/Archives | Identified exit to Hub_04(d) 2144 | -4/Archives | Discovered exit to Hub_04(d) (range 24) 2146 | -4/Archives | Discovered exit to Research (range 13) 2146 | -4/Archives | Unable to access archive contents 2148 | -4/Archives | Discovered exit to Hub_04(d) (range 22) 2153 | -4/Archives | Entered Hub_04(d) 2158 | -4/Hub_04(d) | Network Hub disabled 2158 | -4/Hub_04(d) | Spotted B-86 Titan 2160 | -4/Hub_04(d) | Spotted Lightning 2164 | -4/Hub_04(d) | Spotted Lightning 2166 | -4/Hub_04(d) | Spotted Lightning 2179 | -4/Hub_04(d) | Discovered exit to Research (range 13) 2182 | -4/Hub_04(d) | Spotted Lightning 2184 | -4/Hub_04(d) | Spotted Lightning 2184 | -4/Hub_04(d) | Spotted Lightning 2185 | -4/Hub_04(d) | Destroyed Lightning 2196 | -4/Hub_04(d) | Network Hub disabled 2206 | -4/Hub_04(d) | Spotted Lightning 2206 | -4/Hub_04(d) | Entered Research 2208 | -3/Research | Reached level 24 2208 | -3/Research | Reached level 25 2208 | -3/Research | Spotted B-86 Titan 2215 | -3/Research | Identified exit to Research 2215 | -3/Research | Discovered exit to Research (range 15) 2225 | -3/Research | Identified exit to Testing 2307 | -3/Research | Entered Testing 2309 | -3/Testing | Reached level 26 2318 | -3/Testing | Found Gamma Bomb Array 2346 | -3/Testing | Discovered exit to Research (range 26) 2403 | -3/Testing | Spotted PP-NEK8X16095 2409 | -3/Testing | Entered Research 2411 | -2/Research | Reached level 27 2420 | -2/Research | Identified exit to Quarantine 2444 | -2/Research | Entered Quarantine 2446 | -2/Quarantine | Reached level 28 2451 | -2/Quarantine | Found Alien Energy Cannon 2451 | -2/Quarantine | Identified Core Cannon 2461 | -2/Quarantine | Identified exit to Access 2461 | -2/Quarantine | Discovered exit to Access (range 31) 2466 | -2/Quarantine | Spotted Alpha 7 2501 | -2/Quarantine | Spotted Fortress 2548 | -2/Quarantine | Destroyed Fortress 2568 | -2/Quarantine | Identified exit to Protoforge 2568 | -2/Quarantine | Discovered exit to Protoforge (range 13) 2568 | -2/Quarantine | Identified exit to Section 7 2568 | -2/Quarantine | Discovered exit to Section 7 (range 13) 2571 | -2/Quarantine | Entered Protoforge 2573 | -2/Protoforge | Reached level 29 2573 | -2/Protoforge | Reached level 30 2581 | -2/Protoforge | Superfortress began startup sequence 2603 | -2/Protoforge | Spotted AP7-3 2603 | -2/Protoforge | Spotted AP7-3 2606 | -2/Protoforge | Spotted EXE-6 2606 | -2/Protoforge | Spotted EXE-6 2607 | -2/Protoforge | Spotted SKR-2 2608 | -2/Protoforge | Spotted SKR-2 2608 | -2/Protoforge | Spotted SKR-2 2609 | -2/Protoforge | Spotted EXE-6 2609 | -2/Protoforge | Spotted EXE-6 2627 | -2/Protoforge | Scanned by Researcher 2630 | -2/Protoforge | Spotted Immortal 2647 | -2/Protoforge | Spotted Immortal 2647 | -2/Protoforge | Reached level 31 2647 | -2/Protoforge | Reached level 32 2647 | -2/Protoforge | High security lockdown imminent 2647 | -2/Protoforge | Destroyed Superfortress 2651 | -2/Protoforge | Identified Integrated Reactor 2651 | -2/Protoforge | Installed Integrated Reactor, increased core energy generation (+10) 2652 | -2/Protoforge | Identified Transdimensional Reconstructor 2652 | -2/Protoforge | Warped through subspace 2669 | -2/Protoforge | Found Prototype Energy Gun 2669 | -2/Protoforge | Identified Cep. Variable Chargecaster 2671 | -2/Protoforge | Found Cep. Variable Chargecaster 2682 | -2/Protoforge | Lost 3 parts (1n2u) 2688 | -2/Protoforge | Discovered exit to Access (range 14) 2697 | -2/Protoforge | Entered Access 2699 | -1/Access | Reached level 33 2703 | -1/Access | Identified exit to Command 2738 | -1/Access | Spotted B-99 Colossus 2738 | -1/Access | Spotted B-99 Colossus 2740 | -1/Access | Entered Command 2742 | -1/Command | Reached level 34 2748 | -1/Command | Reached level 35 2765 | -1/Command | Found Fusion Bomb Launcher 2767 | -1/Command | Spotted Striker 2767 | -1/Command | Spotted Striker 2774 | -1/Command | Destroyed Striker 2778 | -1/Command | Destroyed Striker 2788 | -1/Command | Spotted M Guard 2788 | -1/Command | Spotted M Guard 2788 | -1/Command | Spotted Combat Programmer 2788 | -1/Command | Spotted Combat Programmer 2795 | -1/Command | Destroyed Combat Programmer 2804 | -1/Command | Destroyed Combat Programmer 2836 | -1/Command | Destroyed M Guard 2836 | -1/Command | All MAIN.C guards destroyed 2849 | -1/Command | Met MAIN.C 2858 | -1/Command | 0b10 Conduit disabled 2865 | -1/Command | Reached level 36 2865 | -1/Command | Destroyed MAIN.C Shell 2868 | -1/Command | MAIN.C activated Command garrisons 2873 | -1/Command | Core integrity fell below 50% 2893 | -1/Command | Destroyed MAIN.C 2900 | -1/Command | Identified exit to Surface 2900 | -1/Command | Discovered exit to Surface (range 36) 2900 | -1/Command | Discovered exit to Surface (range 103) 2900 | -1/Command | Extracted map data and part IDs from MAIN.C's data core 2908 | -1/Command | Spotted B-99 Colossus 2914 | -1/Command | Spotted B-99 Colossus 2929 | -1/Command | Crushed by falling debris 2935 | -1/Command | Crushed by falling debris 2936 | -1/Command | Crushed by falling debris 2941 | -1/Command | Crushed by falling debris 2943 | -1/Command | Crushed by falling debris 2949 | -1/Command | Crushed by falling debris 2956 | -1/Command | Crushed by falling debris 2959 | -1/Command | Crushed by falling debris 2965 | -1/Command | Crushed by falling debris 2976 | -1/Command | Crushed by falling debris 2978 | -1/Command | Crushed by falling debris 2980 | -1/Command | Crushed by falling debris 2980 | -1/Command | Core integrity fell below 20% 2980 | -1/Command | Crushed by falling debris 2981 | -1/Command | System corruption reached 10% 2982 | -1/Command | Identified exit to Access_0 2982 | -1/Command | Discovered exit to Access_0 (range 7) 2985 | -1/Command | Entered Access_0 2986 | -1/Access_0 | Met Architect 2987 | -1/Access_0 | Reached level 37 2996 | -1/Access_0 | Destroyed A8 3011 | -1/Access_0 | Lost 6 parts (4u2w) 3014 | -1/Access_0 | Architect warped through subspace 3022 | -1/Access_0 | Subspace Access Node disabled 3065 | -1/Access_0 | A6 warped into view 3070 | -1/Access_0 | Architect warped through subspace 3122 | -1/Access_0 | Architect warped through subspace 3135 | -1/Access_0 | Found Hpw. Transdimensional Reconstructor 3146 | -1/Access_0 | Lost 3 parts (2n1w) 3159 | -1/Access_0 | A5 warped into view 3165 | -1/Access_0 | Architect warped through subspace 3168 | -1/Access_0 | Subspace Access Node disabled 3182 | -1/Access_0 | Destroyed A5 3225 | -1/Access_0 | Architect warped through subspace 3232 | -1/Access_0 | Lost 4 parts (4n) 3258 | -1/Access_0 | Build established: Wizard-Sprinter 3274 | -1/Access_0 | Destroyed A2 3280 | -1/Access_0 | Extracted Singularity Gate Test 138-C access codes from A2's data core 3286 | -1/Access_0 | A4 warped into view 3308 | -1/Access_0 | Singularity Gate disabled 3310 | -1/Access_0 | Singularity Gate disabled 3348 | -1/Access_0 | Reached level 38 3348 | -1/Access_0 | Destroyed Architect 3353 | -1/Access_0 | Found Hpw. Transdimensional Reconstructor 3353 | -1/Access_0 | Warped through subspace to slip node 3353 | -1/Access_0 | Discovered exit to Surface (range 8) 3356 | *** | Establishing 0b11! Last Messages --------------- 03312_ Penetrated by HV Slug. 03314_ Enhanced Hunter knocked back. 03315_ Acquired 3 matter. 03327_ Quantum Shear penetrates Wall. 03340_ Architect knocked back. 03342_ Penetrated by Quantum Shear. 03344_ Quantum Shear penetrates Wall. 03344_ Architect knocked back. 03344_ Gamma Bomb intercepted. 03345_ Neutron Cannon blasted off. 03347_ System corrupted: Substantial component data lost. 03348_ Architect: "Defeated by a malfunctioning replica of a piece of alien starship?! You've got*fzzt* be kiddi*bzzz*" 03348_ Reached level 38. [Achievement: Triple Plus] 03348_ Architect destroyed. 03348_ Gamma Bomb intercepted. 03353_ Acquired Hpw. Transdimensional Reconstructor. 03353_ Warped through subspace, drawn to slip node. 03353_ EXIT=FOUND: SURFACE Map ----- +----------------------------------------------------+ | | | | | | | | | | | | | | | | | | | | | | | | | | | | | | | | | ?????????????????????????????????????????????????? | | ?????????????????????????????????????????????????? | | ?????????????????????????????????????????????????? | | ?????????????????????????????????????????????????? | | ?????????????????????????????????????????????????? | | ?????????????????????????????????????????????????? | | ????????????????????????###??????????????????????? | | ???????????????????????## ##?????????????????????? | | ???????????????????????# #?????????????????????? | | ???????????????????????# @ #?????????????????????? | | ??????????????????????## #?????????????????????? | | ??????????????????????# #?????????????????????? | | ??????????????????????# ##?????????????????????? | | ??????????????????????## #?????????????????????? | | ??????????????????????# #?????????????????????? | | ??????????????????????# ##?????????????????????? | | ??????????????????????# < #?????????????????????? | | ??????????????????????# ##?????????????????????? | | ??????????????????????## #??????????????????????? | | ???????????????????????####??????????????????????? | | ?????????????????????????????????????????????????? | | ?????????????????????????????????????????????????? | | ?????????????????????????????????????????????????? | | ?????????????????????????????????????????????????? | | ?????????????????????????????????????????????????? | | ?????????????????????????????????????????????????? | | ?????????????????????????????????????????????????? | | ?????????????????????????????????????????????????? | | ?????????????????????????????????????????????????? | | ?????????????????????????????????????????????????? | | ?????????????????????????????????????????????????? | | ?????????????????????????????????????????????????? | | ?????????????????????????????????????????????????? | | ?????????????????????????????????????????????????? | +----------------------------------------------------+ Best States ------------- Heat Dissipation 1051 Energy Generation 1076 Energy Capacity 10650 Matter Stores 1886 Matter Capacity 2150 Sight Range 212 Robot Scan Range 1016 Terrain Scan Range 16 Terrain Scan Density 10785 Power Amplification 30 Armor Coverage 1200 Resistance: KI 55 Resistance: TH 55 Resistance: EX 55 Resistance: EM 35 Resistance: I 35 Resistance: S 35 Resistance: P 35 Utility Shielding 90 Evasion (%) 67 Offensive Hacking 1020 Defensive Hacking 505 Item Schematics ----------------- Combat Drone Bay | -6/Data Miner | Free Lgt. Regenerative Plating | -6/Data Miner | Free Cld. Gravmag System | -6/Data Miner | Free Imp. Energy Well | -6/Data Miner | Free Smartbomb Launcher | -6/Data Miner | Free Adv. Medium Treads | -6/Data Miner | Free Imp. System Guard | -6/Data Miner | Free Dispersion Rifle | -6/Data Miner | Free Robot Schematics ------------------ S-27 Virus | -6/Data Miner | Free R-10 Processor | -6/Data Miner | Free P-70 Sage | -6/Data Miner | Free L-41 Fighter | -6/Data Miner | Free H-77 Assassin | -6/Data Miner | Free A-27 Freighter | -6/Data Miner | Free Fabricated ------------ Nothing Repaired ---------- Nothing Studied --------- None Alien Tech Used ----------------- Core Cannon Integrated Reactor Transdimensional Reconstructor High-powered Transdimensional Reconstructor Achievements -------------- Dominance Asserted Triple Plus We Love MA Challenges ------------ None RPGLIKE | -11 -10 -10 -8 -8 -8 -6 -6 -6 -6 -5 -5 -5 -5 -5 -4 -4 -4 -4 -4 -4 -3 -3 -2 -2 -2 -1 -1 -1 --------- Run | Yrd Mat Sub Mat Sto Rec Fac Low Low Dat Pro Fac Upp Upp Zhi Pro Fac Ext Cet Arc Hub Res Tes Res Qua Frg Acc Com Ac0 Levels Raised 37 | . . 1 4 1 . 5 1 . 1 1 1 1 . . 2 1 1 1 1 . 2 1 1 1 4 1 3 2 XP Earned 61980 | 6000 750 1200 5884 1299 1000 7230 1049 650 650 2075 1949 500 500 650 2038 1500 2097 1796 607 906 2250 1500 2000 1600 5980 1811 4335 2174 XP Spent -973856599 | -974426959 . . . . . . . . . . . . . . . . . . . . . . . . . . 570360 . Upgrades 2598 | 2404 . . . . . . . . . . . . . . . . . . . . . . . . . . 194 . Propulsion Slot 5 | 5 . . . . . . . . . . . . . . . . . . . . . . . . . . . . Utility Slot 10 | 10 . . . . . . . . . . . . . . . . . . . . . . . . . . . . Weapon Slot 7 | 7 . . . . . . . . . . . . . . . . . . . . . . . . . . . . Core Integrity 389 | 195 . . . . . . . . . . . . . . . . . . . . . . . . . . 194 . Heat Dissipation 171 | 171 . . . . . . . . . . . . . . . . . . . . . . . . . . . . Energy Generation 207 | 207 . . . . . . . . . . . . . . . . . . . . . . . . . . . . Energy Storage 206 | 206 . . . . . . . . . . . . . . . . . . . . . . . . . . . . Matter Storage 37 | 37 . . . . . . . . . . . . . . . . . . . . . . . . . . . . Mass Support 101 | 101 . . . . . . . . . . . . . . . . . . . . . . . . . . . . Inventory Capacity 122 | 122 . . . . . . . . . . . . . . . . . . . . . . . . . . . . Sight Range 191 | 191 . . . . . . . . . . . . . . . . . . . . . . . . . . . . Sensor Range 508 | 508 . . . . . . . . . . . . . . . . . . . . . . . . . . . . Terrain Scan Density 107 | 107 . . . . . . . . . . . . . . . . . . . . . . . . . . . . Ranged Accuracy 193 | 193 . . . . . . . . . . . . . . . . . . . . . . . . . . . . Melee Accuracy 19 | 19 . . . . . . . . . . . . . . . . . . . . . . . . . . . . Hack Attack % 200 | 200 . . . . . . . . . . . . . . . . . . . . . . . . . . . . Hack Defense % 101 | 101 . . . . . . . . . . . . . . . . . . . . . . . . . . . . KI Resistance % 4 | 4 . . . . . . . . . . . . . . . . . . . . . . . . . . . . TH Resistance % 4 | 4 . . . . . . . . . . . . . . . . . . . . . . . . . . . . EX Resistance % 4 | 4 . . . . . . . . . . . . . . . . . . . . . . . . . . . . KI Damage % 4 | 4 . . . . . . . . . . . . . . . . . . . . . . . . . . . . TH Damage % 4 | 4 . . . . . . . . . . . . . . . . . . . . . . . . . . . . EX Damage % 4 | 4 . . . . . . . . . . . . . . . . . . . . . . . . . . . . Protomatter Created 1510 | . . 280 . . . . 102 43 . 75 . 102 . . 26 . 196 178 . . . . . . 49 . 312 147 Protomatter Decayed 5225 | . . 205 . . . . 90 43 . 75 . 102 . . 26 . 143 108 . . . . . . 49 . 4186 198 Game ------ Seed AssaultReactionMinigun Manual? 0 Play Time 01:10:26 Cumulative 77.8 hours Start 2026.03.31 @ 00:03:15 End 2026.03.31 @ 01:22:47 Sessions 1 Manual Loads 0 Difficulty Explorer Special Mode Winter2019/RPGLIKE Game No. 74 Rogue 0 Adventurer 6 Explorer 68 Win Type 1 Total 28 Types 11/4/3/5/1/1/2/0/0/1 Lore% 51 Gallery% 58 Achievement% 62 Wizard Run 0 Options --------- Layout 0 ASCII 0 Keyboard 0 Movement Arrows Keybinds 0 Fullscreen 2 Font 24/Smallcaps Map View 76x50 Zoom Use 1% Tactical HUD 1 Map Filters NONE Filters NONE Steam 1 RUN: b77d14bc-70a3-43af-9e66-fc9d543586fe